{"text_format":"3","workbook":"xlsx","n_sheets":2,"sheets":["Sledovanie projektov","Nastavenie"],"not_rendered":{"defined_names":6},"read":"whole","date_system":"1900"}

{"sheet":"Sledovanie projektov","index":0,"n_rows":13,"n_cols":15,"rows_kept":13}
[null,"Sledovanie projektov"]
[null,null,"Percento nad alebo pod stanovený rámec pre označenie príznakom: ",{"v":0.25,"d":"25%"}]
[]
[null,"Projekt","Kategória","Priradený k","Odhadovaný\nzačiatok","Odhadovaný \nkoniec","Odhadovaná práca \n(v hodinách)","Odhadované trvanie \n(v dňoch)","Skutočný \nzačiatok","Skutočný\nkoniec","Ikona príznaku pre hodnoty nad alebo pod stanovený rámec skutočnej práce (v hodinách)","Skutočná práca (v hodinách)","Ikona príznaku pre hodnoty nad alebo pod stanovený rámec skutočného trvania (v dňoch)","Skutočné trvanie (v dňoch)","Poznámky"]
[null,"Projekt 1","Kategória 1","Zamestnanec 1",{"$f":"TODAY()-65","v":"2016-08-17"},{"$f":"TODAY()-5","v":"2016-10-16"},210,{"$f":"IF(COUNTA('Sledovanie projektov'!$E5,'Sledovanie projektov'!$F5)<>2,\"\",DAYS360('Sledovanie projektov'!$E5,'Sledovanie projektov'!$F5,FALSE))","v":59},{"$f":"TODAY()-65","v":"2016-08-17"},{"$f":"TODAY()","v":"2016-10-21"},{"$f":"IFERROR(IF(SledovanieProjektov[Skutočná práca (v hodinách)]=0,\"\",IF(ABS((SledovanieProjektov[[#This Row],[Skutočná práca (v hodinách)]]-SledovanieProjektov[[#This Row],[Odhadovaná práca \n(v hodinách)]])/SledovanieProjektov[[#This Row],[Odhadovaná práca \n(v hodinách)]])>PercentoPríznaku,1,0)),\"\")","v":1},300,{"$f":"IFERROR(IF(SledovanieProjektov[Skutočné trvanie (v dňoch)]=0,\"\",IF(ABS((SledovanieProjektov[[#This Row],[Skutočné trvanie (v dňoch)]]-SledovanieProjektov[[#This Row],[Odhadované trvanie \n(v dňoch)]])/SledovanieProjektov[[#This Row],[Odhadované trvanie \n(v dňoch)]])>PercentoPríznaku,1,0)),\"\")","v":0},{"$f":"IF(COUNTA('Sledovanie projektov'!$I5,'Sledovanie projektov'!$J5)<>2,\"\",DAYS360('Sledovanie projektov'!$I5,'Sledovanie projektov'!$J5,FALSE))","v":64}]
[null,"Projekt 2","Kategória 2","Zamestnanec 4",{"$f":"TODAY()-41","v":"2016-09-10"},{"$f":"TODAY()-10","v":"2016-10-11"},400,{"$f":"IF(COUNTA('Sledovanie projektov'!$E6,'Sledovanie projektov'!$F6)<>2,\"\",DAYS360('Sledovanie projektov'!$E6,'Sledovanie projektov'!$F6,FALSE))","v":31},{"$f":"TODAY()-41","v":"2016-09-10"},{"$f":"TODAY()-7","v":"2016-10-14"},{"$f":"IFERROR(IF(SledovanieProjektov[Skutočná práca (v hodinách)]=0,\"\",IF(ABS((SledovanieProjektov[[#This Row],[Skutočná práca (v hodinách)]]-SledovanieProjektov[[#This Row],[Odhadovaná práca \n(v hodinách)]])/SledovanieProjektov[[#This Row],[Odhadovaná práca \n(v hodinách)]])>PercentoPríznaku,1,0)),\"\")","v":0},390,{"$f":"IFERROR(IF(SledovanieProjektov[Skutočné trvanie (v dňoch)]=0,\"\",IF(ABS((SledovanieProjektov[[#This Row],[Skutočné trvanie (v dňoch)]]-SledovanieProjektov[[#This Row],[Odhadované trvanie \n(v dňoch)]])/SledovanieProjektov[[#This Row],[Odhadované trvanie \n(v dňoch)]])>PercentoPríznaku,1,0)),\"\")","v":0},{"$f":"IF(COUNTA('Sledovanie projektov'!$I6,'Sledovanie projektov'!$J6)<>2,\"\",DAYS360('Sledovanie projektov'!$I6,'Sledovanie projektov'!$J6,FALSE))","v":34}]
[null,"Projekt 3","Kategória 1","Zamestnanec 2",{"$f":"TODAY()-100","v":"2016-07-13"},{"$f":"TODAY()-40","v":"2016-09-11"},500,{"$f":"IF(COUNTA('Sledovanie projektov'!$E7,'Sledovanie projektov'!$F7)<>2,\"\",DAYS360('Sledovanie projektov'!$E7,'Sledovanie projektov'!$F7,FALSE))","v":58},{"$f":"TODAY()-100","v":"2016-07-13"},{"$f":"TODAY()-27","v":"2016-09-24"},{"$f":"IFERROR(IF(SledovanieProjektov[Skutočná práca (v hodinách)]=0,\"\",IF(ABS((SledovanieProjektov[[#This Row],[Skutočná práca (v hodinách)]]-SledovanieProjektov[[#This Row],[Odhadovaná práca \n(v hodinách)]])/SledovanieProjektov[[#This Row],[Odhadovaná práca \n(v hodinách)]])>PercentoPríznaku,1,0)),\"\")","v":0},500,{"$f":"IFERROR(IF(SledovanieProjektov[Skutočné trvanie (v dňoch)]=0,\"\",IF(ABS((SledovanieProjektov[[#This Row],[Skutočné trvanie (v dňoch)]]-SledovanieProjektov[[#This Row],[Odhadované trvanie \n(v dňoch)]])/SledovanieProjektov[[#This Row],[Odhadované trvanie \n(v dňoch)]])>PercentoPríznaku,1,0)),\"\")","v":0},{"$f":"IF(COUNTA('Sledovanie projektov'!$I7,'Sledovanie projektov'!$J7)<>2,\"\",DAYS360('Sledovanie projektov'!$I7,'Sledovanie projektov'!$J7,FALSE))","v":71}]
[null,"Projekt 4","Kategória 2","Zamestnanec 3",{"$f":"TODAY()-90","v":"2016-07-23"},{"$f":"TODAY()-80","v":"2016-08-02"},250,{"$f":"IF(COUNTA('Sledovanie projektov'!$E8,'Sledovanie projektov'!$F8)<>2,\"\",DAYS360('Sledovanie projektov'!$E8,'Sledovanie projektov'!$F8,FALSE))","v":9},{"$f":"TODAY()-90","v":"2016-07-23"},{"$f":"TODAY()-71","v":"2016-08-11"},{"$f":"IFERROR(IF(SledovanieProjektov[Skutočná práca (v hodinách)]=0,\"\",IF(ABS((SledovanieProjektov[[#This Row],[Skutočná práca (v hodinách)]]-SledovanieProjektov[[#This Row],[Odhadovaná práca \n(v hodinách)]])/SledovanieProjektov[[#This Row],[Odhadovaná práca \n(v hodinách)]])>PercentoPríznaku,1,0)),\"\")","v":0},276,{"$f":"IFERROR(IF(SledovanieProjektov[Skutočné trvanie (v dňoch)]=0,\"\",IF(ABS((SledovanieProjektov[[#This Row],[Skutočné trvanie (v dňoch)]]-SledovanieProjektov[[#This Row],[Odhadované trvanie \n(v dňoch)]])/SledovanieProjektov[[#This Row],[Odhadované trvanie \n(v dňoch)]])>PercentoPríznaku,1,0)),\"\")","v":1},{"$f":"IF(COUNTA('Sledovanie projektov'!$I8,'Sledovanie projektov'!$J8)<>2,\"\",DAYS360('Sledovanie projektov'!$I8,'Sledovanie projektov'!$J8,FALSE))","v":18}]
[null,"Projekt 5","Kategória 3","Zamestnanec 2",{"$f":"TODAY()-90","v":"2016-07-23"},{"$f":"TODAY()-50","v":"2016-09-01"},300,{"$f":"IF(COUNTA('Sledovanie projektov'!$E9,'Sledovanie projektov'!$F9)<>2,\"\",DAYS360('Sledovanie projektov'!$E9,'Sledovanie projektov'!$F9,FALSE))","v":38},{"$f":"TODAY()-90","v":"2016-07-23"},{"$f":"TODAY()-44","v":"2016-09-07"},{"$f":"IFERROR(IF(SledovanieProjektov[Skutočná práca (v hodinách)]=0,\"\",IF(ABS((SledovanieProjektov[[#This Row],[Skutočná práca (v hodinách)]]-SledovanieProjektov[[#This Row],[Odhadovaná práca \n(v hodinách)]])/SledovanieProjektov[[#This Row],[Odhadovaná práca \n(v hodinách)]])>PercentoPríznaku,1,0)),\"\")","v":0},310,{"$f":"IFERROR(IF(SledovanieProjektov[Skutočné trvanie (v dňoch)]=0,\"\",IF(ABS((SledovanieProjektov[[#This Row],[Skutočné trvanie (v dňoch)]]-SledovanieProjektov[[#This Row],[Odhadované trvanie \n(v dňoch)]])/SledovanieProjektov[[#This Row],[Odhadované trvanie \n(v dňoch)]])>PercentoPríznaku,1,0)),\"\")","v":0},{"$f":"IF(COUNTA('Sledovanie projektov'!$I9,'Sledovanie projektov'!$J9)<>2,\"\",DAYS360('Sledovanie projektov'!$I9,'Sledovanie projektov'!$J9,FALSE))","v":44}]
[null,"Projekt 6","Kategória 4","Zamestnanec 4",{"$f":"TODAY()-60","v":"2016-08-22"},{"$f":"TODAY()-50","v":"2016-09-01"},500,{"$f":"IF(COUNTA('Sledovanie projektov'!$E10,'Sledovanie projektov'!$F10)<>2,\"\",DAYS360('Sledovanie projektov'!$E10,'Sledovanie projektov'!$F10,FALSE))","v":9},{"$f":"TODAY()-60","v":"2016-08-22"},{"$f":"TODAY()-45","v":"2016-09-06"},{"$f":"IFERROR(IF(SledovanieProjektov[Skutočná práca (v hodinách)]=0,\"\",IF(ABS((SledovanieProjektov[[#This Row],[Skutočná práca (v hodinách)]]-SledovanieProjektov[[#This Row],[Odhadovaná práca \n(v hodinách)]])/SledovanieProjektov[[#This Row],[Odhadovaná práca \n(v hodinách)]])>PercentoPríznaku,1,0)),\"\")","v":0},510,{"$f":"IFERROR(IF(SledovanieProjektov[Skutočné trvanie (v dňoch)]=0,\"\",IF(ABS((SledovanieProjektov[[#This Row],[Skutočné trvanie (v dňoch)]]-SledovanieProjektov[[#This Row],[Odhadované trvanie \n(v dňoch)]])/SledovanieProjektov[[#This Row],[Odhadované trvanie \n(v dňoch)]])>PercentoPríznaku,1,0)),\"\")","v":1},{"$f":"IF(COUNTA('Sledovanie projektov'!$I10,'Sledovanie projektov'!$J10)<>2,\"\",DAYS360('Sledovanie projektov'!$I10,'Sledovanie projektov'!$J10,FALSE))","v":14}]
[null,"Projekt 7","Kategória 5","Zamestnanec 1",{"$f":"TODAY()-44","v":"2016-09-07"},{"$f":"TODAY()-20","v":"2016-10-01"},750,{"$f":"IF(COUNTA('Sledovanie projektov'!$E11,'Sledovanie projektov'!$F11)<>2,\"\",DAYS360('Sledovanie projektov'!$E11,'Sledovanie projektov'!$F11,FALSE))","v":24},{"$f":"TODAY()-44","v":"2016-09-07"},{"$f":"TODAY()-15","v":"2016-10-06"},{"$f":"IFERROR(IF(SledovanieProjektov[Skutočná práca (v hodinách)]=0,\"\",IF(ABS((SledovanieProjektov[[#This Row],[Skutočná práca (v hodinách)]]-SledovanieProjektov[[#This Row],[Odhadovaná práca \n(v hodinách)]])/SledovanieProjektov[[#This Row],[Odhadovaná práca \n(v hodinách)]])>PercentoPríznaku,1,0)),\"\")","v":0},790,{"$f":"IFERROR(IF(SledovanieProjektov[Skutočné trvanie (v dňoch)]=0,\"\",IF(ABS((SledovanieProjektov[[#This Row],[Skutočné trvanie (v dňoch)]]-SledovanieProjektov[[#This Row],[Odhadované trvanie \n(v dňoch)]])/SledovanieProjektov[[#This Row],[Odhadované trvanie \n(v dňoch)]])>PercentoPríznaku,1,0)),\"\")","v":0},{"$f":"IF(COUNTA('Sledovanie projektov'!$I11,'Sledovanie projektov'!$J11)<>2,\"\",DAYS360('Sledovanie projektov'!$I11,'Sledovanie projektov'!$J11,FALSE))","v":29}]
[null,"Projekt 8","Kategória 2","Zamestnanec 1",{"$f":"TODAY()-39","v":"2016-09-12"},{"$f":"TODAY()","v":"2016-10-21"},450,{"$f":"IF(COUNTA('Sledovanie projektov'!$E12,'Sledovanie projektov'!$F12)<>2,\"\",DAYS360('Sledovanie projektov'!$E12,'Sledovanie projektov'!$F12,FALSE))","v":39},{"$f":"TODAY()-45","v":"2016-09-06"},{"$f":"TODAY()-5","v":"2016-10-16"},{"$f":"IFERROR(IF(SledovanieProjektov[Skutočná práca (v hodinách)]=0,\"\",IF(ABS((SledovanieProjektov[[#This Row],[Skutočná práca (v hodinách)]]-SledovanieProjektov[[#This Row],[Odhadovaná práca \n(v hodinách)]])/SledovanieProjektov[[#This Row],[Odhadovaná práca \n(v hodinách)]])>PercentoPríznaku,1,0)),\"\")","v":0},430,{"$f":"IFERROR(IF(SledovanieProjektov[Skutočné trvanie (v dňoch)]=0,\"\",IF(ABS((SledovanieProjektov[[#This Row],[Skutočné trvanie (v dňoch)]]-SledovanieProjektov[[#This Row],[Odhadované trvanie \n(v dňoch)]])/SledovanieProjektov[[#This Row],[Odhadované trvanie \n(v dňoch)]])>PercentoPríznaku,1,0)),\"\")","v":0},{"$f":"IF(COUNTA('Sledovanie projektov'!$I12,'Sledovanie projektov'!$J12)<>2,\"\",DAYS360('Sledovanie projektov'!$I12,'Sledovanie projektov'!$J12,FALSE))","v":40}]
[null,"Projekt 9","Kategória 4","Zamestnanec 1","2016-02-05","2016-06-09",250,{"$f":"IF(COUNTA('Sledovanie projektov'!$E13,'Sledovanie projektov'!$F13)<>2,\"\",DAYS360('Sledovanie projektov'!$E13,'Sledovanie projektov'!$F13,FALSE))","v":124},"2016-03-05","2016-05-05",{"$f":"IFERROR(IF(SledovanieProjektov[Skutočná práca (v hodinách)]=0,\"\",IF(ABS((SledovanieProjektov[[#This Row],[Skutočná práca (v hodinách)]]-SledovanieProjektov[[#This Row],[Odhadovaná práca \n(v hodinách)]])/SledovanieProjektov[[#This Row],[Odhadovaná práca \n(v hodinách)]])>PercentoPríznaku,1,0)),\"\")","v":0},200,{"$f":"IFERROR(IF(SledovanieProjektov[Skutočné trvanie (v dňoch)]=0,\"\",IF(ABS((SledovanieProjektov[[#This Row],[Skutočné trvanie (v dňoch)]]-SledovanieProjektov[[#This Row],[Odhadované trvanie \n(v dňoch)]])/SledovanieProjektov[[#This Row],[Odhadované trvanie \n(v dňoch)]])>PercentoPríznaku,1,0)),\"\")","v":1},{"$f":"IF(COUNTA('Sledovanie projektov'!$I13,'Sledovanie projektov'!$J13)<>2,\"\",DAYS360('Sledovanie projektov'!$I13,'Sledovanie projektov'!$J13,FALSE))","v":60}]

{"sheet":"Nastavenie","index":1,"n_rows":10,"n_cols":3,"rows_kept":10}
[null,"Nastavenie"]
[]
[]
[null,"Názov kategórie","Meno zamestnanca"]
[null,"Kategória 1","Zamestnanec 1"]
[null,"Kategória 2","Zamestnanec 2"]
[null,"Kategória 3","Zamestnanec 3"]
[null,"Kategória 4","Zamestnanec 4"]
[null,"Kategória 5","Zamestnanec 5"]
[null,"Kategória 6","Zamestnanec 6"]